{"text_format":"1","workbook":"xlsx","n_sheets":2,"sheets":["급여 입력","명세서_서식 파일"],"not_rendered":{"charts":0,"images":0,"macros":1,"external_links":0,"defined_names":7,"comments":0,"pivot_tables":0},"unopened":[],"bounds":{"document_bytes":16777216,"sheet_cells":100000,"rows_first":2000,"rows_last":500,"rows_between":2000,"halvings":0,"cell_chars":16384,"cell_head_chars":4096},"cells_cut":0,"cells_raw":0,"read":"whole","date_system":"1900"}

{"sheet":"급여 입력","index":0,"n_rows":13,"n_cols":24,"rows_kept":13,"cut":false,"hidden":false,"merged":[[0,13,0,14]]}
[null,"급여 계산",null,null,null,null,null,null,null,null,"기간 종료:",41372,null,"회사 이름:",null,"신세계 통상 (주)"]
[]
[null,"ID","직원 이름","정규 근무 시간","휴가 시간","병가 시간","초과 근무 시간","초과 근무 수당","총 급여","세금 공제","기타 공제","순 급여"," ","시급","세제","연방 공제","지방세","소득세","사회 보장세","의료 보장세","총 원천징수","보험 공제","기타 일반 공제","총 일반 공제"]
[null,1001,"박병재",50,5,1,null,null,{"$f":"SUM(Employees[[#This Row],[정규 근무 시간]:[병가 시간]])*Employees[[#This Row],[시급]]+Employees[[#This Row],[초과 근무 시간]]*Employees[[#This Row],[초과 근무 수당]]","v":560000},{"$f":"Employees[[#This Row],[총 급여]]*Employees[[#This Row],[총 원천징수]] + Employees[[#This Row],[총 일반 공제]]","v":273080},20000,{"$f":"Employees[[#This Row],[총 급여]]-Employees[[#This Row],[세금 공제]]-Employees[[#This Row],[기타 공제]]","v":266920},null,10000,1,4,2.3E-2,0.28000000000000003,6.3E-2,1.4500000000000001E-2,{"$f":"SUM(Employees[[#This Row],[지방세]:[의료 보장세]])","v":0.38050000000000006},20000,40000,{"$f":"SUM(Employees[[#This Row],[보험 공제]:[기타 일반 공제]])","v":60000}]
[null,1002,"강재석",40,null,null,null,null,{"$f":"SUM(Employees[[#This Row],[정규 근무 시간]:[병가 시간]])*Employees[[#This Row],[시급]]+Employees[[#This Row],[초과 근무 시간]]*Employees[[#This Row],[초과 근무 수당]]","v":320000},{"$f":"Employees[[#This Row],[총 급여]]*Employees[[#This Row],[총 원천징수]] + Employees[[#This Row],[총 일반 공제]]","v":131760},null,{"$f":"Employees[[#This Row],[총 급여]]-Employees[[#This Row],[세금 공제]]-Employees[[#This Row],[기타 공제]]","v":188240},null,8000,1,1,2.3E-2,0.28000000000000003,6.3E-2,1.4500000000000001E-2,{"$f":"SUM(Employees[[#This Row],[지방세]:[의료 보장세]])","v":0.38050000000000006},"-",10000,{"$f":"SUM(Employees[[#This Row],[보험 공제]:[기타 일반 공제]])","v":10000}]
[null,1003,"박영일",35,3,null,null,null,{"$f":"SUM(Employees[[#This Row],[정규 근무 시간]:[병가 시간]])*Employees[[#This Row],[시급]]+Employees[[#This Row],[초과 근무 시간]]*Employees[[#This Row],[초과 근무 수당]]","v":532000},{"$f":"Employees[[#This Row],[총 급여]]*Employees[[#This Row],[총 원천징수]] + Employees[[#This Row],[총 일반 공제]]","v":240426.00000000003},null,{"$f":"Employees[[#This Row],[총 급여]]-Employees[[#This Row],[세금 공제]]-Employees[[#This Row],[기타 공제]]","v":291574},null,14000,1,3,2.3E-2,0.28000000000000003,6.3E-2,1.4500000000000001E-2,{"$f":"SUM(Employees[[#This Row],[지방세]:[의료 보장세]])","v":0.38050000000000006},18000,20000,{"$f":"SUM(Employees[[#This Row],[보험 공제]:[기타 일반 공제]])","v":38000}]
[null,1008,"천자룡",50,5,1,null,null,{"$f":"SUM(Employees[[#This Row],[정규 근무 시간]:[병가 시간]])*Employees[[#This Row],[시급]]+Employees[[#This Row],[초과 근무 시간]]*Employees[[#This Row],[초과 근무 수당]]","v":1120000},{"$f":"Employees[[#This Row],[총 급여]]*Employees[[#This Row],[총 원천징수]] + Employees[[#This Row],[총 일반 공제]]","v":441160.00000000006},null,{"$f":"Employees[[#This Row],[총 급여]]-Employees[[#This Row],[세금 공제]]-Employees[[#This Row],[기타 공제]]","v":678840},null,20000,1,0,2.3E-2,0.28000000000000003,6.3E-2,1.4500000000000001E-2,{"$f":"SUM(Employees[[#This Row],[지방세]:[의료 보장세]])","v":0.38050000000000006},15000,null,{"$f":"SUM(Employees[[#This Row],[보험 공제]:[기타 일반 공제]])","v":15000}]
[null,1011,"오현아",40,null,null,2,15000,{"$f":"SUM(Employees[[#This Row],[정규 근무 시간]:[병가 시간]])*Employees[[#This Row],[시급]]+Employees[[#This Row],[초과 근무 시간]]*Employees[[#This Row],[초과 근무 수당]]","v":430000},{"$f":"Employees[[#This Row],[총 급여]]*Employees[[#This Row],[총 원천징수]] + Employees[[#This Row],[총 일반 공제]]","v":223615.00000000003},null,{"$f":"Employees[[#This Row],[총 급여]]-Employees[[#This Row],[세금 공제]]-Employees[[#This Row],[기타 공제]]","v":206384.99999999997},null,10000,1,0,2.3E-2,0.28000000000000003,6.3E-2,1.4500000000000001E-2,{"$f":"SUM(Employees[[#This Row],[지방세]:[의료 보장세]])","v":0.38050000000000006},20000,40000,{"$f":"SUM(Employees[[#This Row],[보험 공제]:[기타 일반 공제]])","v":60000}]
[null,1012,"홍재석",40,5,1,null,null,{"$f":"SUM(Employees[[#This Row],[정규 근무 시간]:[병가 시간]])*Employees[[#This Row],[시급]]+Employees[[#This Row],[초과 근무 시간]]*Employees[[#This Row],[초과 근무 수당]]","v":552000},{"$f":"Employees[[#This Row],[총 급여]]*Employees[[#This Row],[총 원천징수]] + Employees[[#This Row],[총 일반 공제]]","v":270036},null,{"$f":"Employees[[#This Row],[총 급여]]-Employees[[#This Row],[세금 공제]]-Employees[[#This Row],[기타 공제]]","v":281964},null,12000,1,4,2.3E-2,0.28000000000000003,6.3E-2,1.4500000000000001E-2,{"$f":"SUM(Employees[[#This Row],[지방세]:[의료 보장세]])","v":0.38050000000000006},20000,40000,{"$f":"SUM(Employees[[#This Row],[보험 공제]:[기타 일반 공제]])","v":60000}]
[null,1025,"한미순",36,null,2,1,18000,{"$f":"SUM(Employees[[#This Row],[정규 근무 시간]:[병가 시간]])*Employees[[#This Row],[시급]]+Employees[[#This Row],[초과 근무 시간]]*Employees[[#This Row],[초과 근무 수당]]","v":474000},{"$f":"Employees[[#This Row],[총 급여]]*Employees[[#This Row],[총 원천징수]] + Employees[[#This Row],[총 일반 공제]]","v":225357.00000000003},25000,{"$f":"Employees[[#This Row],[총 급여]]-Employees[[#This Row],[세금 공제]]-Employees[[#This Row],[기타 공제]]","v":223642.99999999997},null,12000,1,2,2.3E-2,0.28000000000000003,6.3E-2,1.4500000000000001E-2,{"$f":"SUM(Employees[[#This Row],[지방세]:[의료 보장세]])","v":0.38050000000000006},25000,20000,{"$f":"SUM(Employees[[#This Row],[보험 공제]:[기타 일반 공제]])","v":45000}]
[null,1032,"박민수",40,5,1,null,null,{"$f":"SUM(Employees[[#This Row],[정규 근무 시간]:[병가 시간]])*Employees[[#This Row],[시급]]+Employees[[#This Row],[초과 근무 시간]]*Employees[[#This Row],[초과 근무 수당]]","v":460000},{"$f":"Employees[[#This Row],[총 급여]]*Employees[[#This Row],[총 원천징수]] + Employees[[#This Row],[총 일반 공제]]","v":175030.00000000003},50000,{"$f":"Employees[[#This Row],[총 급여]]-Employees[[#This Row],[세금 공제]]-Employees[[#This Row],[기타 공제]]","v":234970},null,10000,1,3,2.3E-2,0.28000000000000003,6.3E-2,1.4500000000000001E-2,{"$f":"SUM(Employees[[#This Row],[지방세]:[의료 보장세]])","v":0.38050000000000006},null,null,{"$f":"SUM(Employees[[#This Row],[보험 공제]:[기타 일반 공제]])","v":0}]
[null,1049,"김재석",40,1,null,null,null,{"$f":"SUM(Employees[[#This Row],[정규 근무 시간]:[병가 시간]])*Employees[[#This Row],[시급]]+Employees[[#This Row],[초과 근무 시간]]*Employees[[#This Row],[초과 근무 수당]]","v":615000},{"$f":"Employees[[#This Row],[총 급여]]*Employees[[#This Row],[총 원천징수]] + Employees[[#This Row],[총 일반 공제]]","v":259007.50000000003},23000,{"$f":"Employees[[#This Row],[총 급여]]-Employees[[#This Row],[세금 공제]]-Employees[[#This Row],[기타 공제]]","v":332992.5},null,15000,1,2,2.3E-2,0.28000000000000003,6.3E-2,1.4500000000000001E-2,{"$f":"SUM(Employees[[#This Row],[지방세]:[의료 보장세]])","v":0.38050000000000006},25000,null,{"$f":"SUM(Employees[[#This Row],[보험 공제]:[기타 일반 공제]])","v":25000}]
[null,"합계",{"$f":"SUBTOTAL(103,Employees[직원 이름])","v":9},{"$f":"SUBTOTAL(109,Employees[정규 근무 시간])","v":371},{"$f":"SUBTOTAL(109,Employees[휴가 시간])","v":24},{"$f":"SUBTOTAL(109,Employees[병가 시간])","v":6},{"$f":"SUBTOTAL(109,Employees[초과 근무 시간])","v":3},null,{"$f":"SUBTOTAL(109,Employees[총 급여])","v":5063000},{"$f":"SUBTOTAL(109,Employees[세금 공제])","v":2239471.5},{"$f":"SUBTOTAL(109,Employees[기타 공제])","v":118000},{"$f":"SUBTOTAL(109,Employees[순 급여])","v":2705528.5},null,null,null,null,null,null,null,null,null,{"$f":"SUBTOTAL(109,Employees[보험 공제])","v":143000},{"$f":"SUBTOTAL(109,Employees[기타 일반 공제])","v":170000},{"$f":"SUBTOTAL(109,Employees[총 일반 공제])","v":313000}]

{"sheet":"명세서_서식 파일","index":1,"n_rows":47,"n_cols":13,"rows_kept":47,"cut":false,"hidden":true,"merged":[[38,11,38,12],[26,11,26,12],[14,11,14,12],[2,11,2,12],[2,3,2,4],[14,3,14,4],[26,3,26,4],[38,3,38,4],[2,7,2,8],[14,7,14,8],[26,7,26,8],[38,7,38,8]]}
[]
[null,null,{"$f":"CompanyName","v":"신세계 통상 (주)"}]
[null,null,"기간",{"$f":"PeriodEnding","v":41372},null,null,"이름",{"$f":"IFERROR(INDEX(Employees[직원 이름],Stub),\"\")","v":"박병재"},null,null,"직원 ID",{"$f":"IFERROR(INDEX(Employees[ID],Stub),\"\")","v":1001}]
[null,null,"세제",null,{"$f":"IFERROR(INDEX(Employees[세제],Stub),\"\")","v":1},null,"연방 공제(W-4 양식, 미국의 경우)",null,{"$f":"IFERROR(INDEX(Employees[연방 공제],Stub),\"\")","v":4},null,"근무 시간",null,{"$f":"IFERROR(INDEX(Employees[정규 근무 시간],Stub),\"\")","v":50}]
[null,null,"시간당 급여",null,{"$f":"IFERROR(INDEX(Employees[시급],Stub),\"\")","v":10000},null,"초과 근무 수당",null,{"$f":"IFERROR(INDEX(Employees[초과 근무 수당],Stub),\"\")","v":0},null,"병가 시간",null,{"$f":"IFERROR(INDEX(Employees[병가 시간],Stub),\"\")","v":1}]
[null,null,"사회 보장세",null,{"$f":"IFERROR(INDEX(Employees[사회 보장세],Stub)  *  INDEX(Employees[총 급여],Stub),\"\")","v":35280},null,"소득세 ",null,{"$f":"IFERROR(INDEX(Employees[소득세],Stub)  *  INDEX(Employees[총 급여],Stub),\"\")","v":156800.00000000003},null,"휴가 시간",null,{"$f":"IFERROR(INDEX(Employees[휴가 시간],Stub),\"\")","v":5}]
[null,null,"의료 보장세 ",null,{"$f":"IFERROR(INDEX(Employees[의료 보장세],Stub)  *  INDEX(Employees[총 급여],Stub),\"\")","v":8120},null,"지방세 ",null,{"$f":"IFERROR(INDEX(Employees[지방세],Stub)  *  INDEX(Employees[총 급여],Stub),\"\")","v":12880},null,"초과 근무 시간",null,{"$f":"IFERROR(INDEX(Employees[초과 근무 시간],Stub),\"\")","v":0}]
[null,null,"보험 공제",null,{"$f":"IFERROR(INDEX(Employees[보험 공제],Stub),\"\")","v":20000},null,"기타 정규 공제",null,{"$f":"IFERROR(INDEX(Employees[기타 일반 공제],Stub),\"\")","v":40000},null,"총 급여",null,{"$f":"IFERROR(INDEX(Employees[총 급여],Stub),\"\")","v":560000}]
[null,null,"총 세금",null,{"$f":"IFERROR(INDEX(Employees[세금 공제],Stub),\"\")","v":273080},null,"기타 공제",null,{"$f":"IFERROR(INDEX(Employees[기타 공제],Stub),\"\")","v":20000},null,"총 세액 및 공제 ",null,{"$f":"IFERROR(INDEX(Employees[세금 공제],Stub)  +  INDEX(Employees[기타 공제],Stub),\"\")","v":293080}]
[null,null,"일반 공제 "]
[null,null,null,null,null,null,null,null,null,null,"순 급여",null,{"$f":"IFERROR(INDEX(Employees[순 급여],Stub),\"\")","v":266920}]
[]
[]
[null,null,{"$f":"CompanyName","v":"신세계 통상 (주)"}]
[null,null,"기간",{"$f":"PeriodEnding","v":41372},null,null,"이름",{"$f":"IFERROR(INDEX(Employees[직원 이름],Stub),\"\")","v":"강재석"},null,null,"직원 ID",{"$f":"IFERROR(INDEX(Employees[ID],Stub),\"\")","v":1002}]
[null,null,"세제",null,{"$f":"IFERROR(INDEX(Employees[세제],Stub),\"\")","v":1},null,"연방 공제(W-4 양식, 미국의 경우)",null,{"$f":"IFERROR(INDEX(Employees[연방 공제],Stub),\"\")","v":1},null,"근무 시간",null,{"$f":"IFERROR(INDEX(Employees[정규 근무 시간],Stub),\"\")","v":40}]
[null,null,"시간당 급여",null,{"$f":"IFERROR(INDEX(Employees[시급],Stub),\"\")","v":8000},null,"초과 근무 수당",null,{"$f":"IFERROR(INDEX(Employees[초과 근무 수당],Stub),\"\")","v":0},null,"병가 시간",null,{"$f":"IFERROR(INDEX(Employees[병가 시간],Stub),\"\")","v":0}]
[null,null,"사회 보장세",null,{"$f":"IFERROR(INDEX(Employees[사회 보장세],Stub)  *  INDEX(Employees[총 급여],Stub),\"\")","v":20160},null,"소득세 ",null,{"$f":"IFERROR(INDEX(Employees[소득세],Stub)  *  INDEX(Employees[총 급여],Stub),\"\")","v":89600.000000000015},null,"휴가 시간",null,{"$f":"IFERROR(INDEX(Employees[휴가 시간],Stub),\"\")","v":0}]
[null,null,"의료 보장세 ",null,{"$f":"IFERROR(INDEX(Employees[의료 보장세],Stub)  *  INDEX(Employees[총 급여],Stub),\"\")","v":4640},null,"지방세 ",null,{"$f":"IFERROR(INDEX(Employees[지방세],Stub)  *  INDEX(Employees[총 급여],Stub),\"\")","v":7360},null,"초과 근무 시간",null,{"$f":"IFERROR(INDEX(Employees[초과 근무 시간],Stub),\"\")","v":0}]
[null,null,"보험 공제",null,{"$f":"IFERROR(INDEX(Employees[보험 공제],Stub),\"\")","v":"-"},null,"기타 정규 공제",null,{"$f":"IFERROR(INDEX(Employees[기타 일반 공제],Stub),\"\")","v":10000},null,"총 급여",null,{"$f":"IFERROR(INDEX(Employees[총 급여],Stub),\"\")","v":320000}]
[null,null,"총 세금",null,{"$f":"IFERROR(INDEX(Employees[세금 공제],Stub),\"\")","v":131760},null,"기타 공제",null,{"$f":"IFERROR(INDEX(Employees[기타 공제],Stub),\"\")","v":0},null,"총 세액 및 공제 ",null,{"$f":"IFERROR(INDEX(Employees[세금 공제],Stub)  +  INDEX(Employees[기타 공제],Stub),\"\")","v":131760}]
[null,null,"일반 공제 "]
[null,null,null,null,null,null,null,null,null,null,"순 급여",null,{"$f":"IFERROR(INDEX(Employees[순 급여],Stub),\"\")","v":188240}]
[]
[]
[null,null,{"$f":"CompanyName","v":"신세계 통상 (주)"}]
[null,null,"기간",{"$f":"PeriodEnding","v":41372},null,null,"이름",{"$f":"IFERROR(INDEX(Employees[직원 이름],Stub),\"\")","v":"박영일"},null,null,"직원 ID",{"$f":"IFERROR(INDEX(Employees[ID],Stub),\"\")","v":1003}]
[null,null,"세제",null,{"$f":"IFERROR(INDEX(Employees[세제],Stub),\"\")","v":1},null,"연방 공제(W-4 양식, 미국의 경우)",null,{"$f":"IFERROR(INDEX(Employees[연방 공제],Stub),\"\")","v":3},null,"근무 시간",null,{"$f":"IFERROR(INDEX(Employees[정규 근무 시간],Stub),\"\")","v":35}]
[null,null,"시간당 급여",null,{"$f":"IFERROR(INDEX(Employees[시급],Stub),\"\")","v":14000},null,"초과 근무 수당",null,{"$f":"IFERROR(INDEX(Employees[초과 근무 수당],Stub),\"\")","v":0},null,"병가 시간",null,{"$f":"IFERROR(INDEX(Employees[병가 시간],Stub),\"\")","v":0}]
[null,null,"사회 보장세",null,{"$f":"IFERROR(INDEX(Employees[사회 보장세],Stub)  *  INDEX(Employees[총 급여],Stub),\"\")","v":33516},null,"소득세 ",null,{"$f":"IFERROR(INDEX(Employees[소득세],Stub)  *  INDEX(Employees[총 급여],Stub),\"\")","v":148960},null,"휴가 시간",null,{"$f":"IFERROR(INDEX(Employees[휴가 시간],Stub),\"\")","v":3}]
[null,null,"의료 보장세 ",null,{"$f":"IFERROR(INDEX(Employees[의료 보장세],Stub)  *  INDEX(Employees[총 급여],Stub),\"\")","v":7714},null,"지방세 ",null,{"$f":"IFERROR(INDEX(Employees[지방세],Stub)  *  INDEX(Employees[총 급여],Stub),\"\")","v":12236},null,"초과 근무 시간",null,{"$f":"IFERROR(INDEX(Employees[초과 근무 시간],Stub),\"\")","v":0}]
[null,null,"보험 공제",null,{"$f":"IFERROR(INDEX(Employees[보험 공제],Stub),\"\")","v":18000},null,"기타 정규 공제",null,{"$f":"IFERROR(INDEX(Employees[기타 일반 공제],Stub),\"\")","v":20000},null,"총 급여",null,{"$f":"IFERROR(INDEX(Employees[총 급여],Stub),\"\")","v":532000}]
[null,null,"총 세금",null,{"$f":"IFERROR(INDEX(Employees[세금 공제],Stub),\"\")","v":240426.00000000003},null,"기타 공제",null,{"$f":"IFERROR(INDEX(Employees[기타 공제],Stub),\"\")","v":0},null,"총 세액 및 공제 ",null,{"$f":"IFERROR(INDEX(Employees[세금 공제],Stub)  +  INDEX(Employees[기타 공제],Stub),\"\")","v":240426.00000000003}]
[null,null,"일반 공제 "]
[null,null,null,null,null,null,null,null,null,null,"순 급여",null,{"$f":"IFERROR(INDEX(Employees[순 급여],Stub),\"\")","v":291574}]
[]
[]
[null,null,{"$f":"CompanyName","v":"신세계 통상 (주)"}]
[null,null,"기간",{"$f":"PeriodEnding","v":41372},null,null,"이름",{"$f":"IFERROR(INDEX(Employees[직원 이름],Stub),\"\")","v":"천자룡"},null,null,"직원 ID",{"$f":"IFERROR(INDEX(Employees[ID],Stub),\"\")","v":1008}]
[null,null,"세제",null,{"$f":"IFERROR(INDEX(Employees[세제],Stub),\"\")","v":1},null,"연방 공제(W-4 양식, 미국의 경우)",null,{"$f":"IFERROR(INDEX(Employees[연방 공제],Stub),\"\")","v":0},null,"근무 시간",null,{"$f":"IFERROR(INDEX(Employees[정규 근무 시간],Stub),\"\")","v":50}]
[null,null,"시간당 급여",null,{"$f":"IFERROR(INDEX(Employees[시급],Stub),\"\")","v":20000},null,"초과 근무 수당",null,{"$f":"IFERROR(INDEX(Employees[초과 근무 수당],Stub),\"\")","v":0},null,"병가 시간",null,{"$f":"IFERROR(INDEX(Employees[병가 시간],Stub),\"\")","v":1}]
[null,null,"사회 보장세",null,{"$f":"IFERROR(INDEX(Employees[사회 보장세],Stub)  *  INDEX(Employees[총 급여],Stub),\"\")","v":70560},null,"소득세 ",null,{"$f":"IFERROR(INDEX(Employees[소득세],Stub)  *  INDEX(Employees[총 급여],Stub),\"\")","v":313600.00000000006},null,"휴가 시간",null,{"$f":"IFERROR(INDEX(Employees[휴가 시간],Stub),\"\")","v":5}]
[null,null,"의료 보장세 ",null,{"$f":"IFERROR(INDEX(Employees[의료 보장세],Stub)  *  INDEX(Employees[총 급여],Stub),\"\")","v":16240},null,"지방세 ",null,{"$f":"IFERROR(INDEX(Employees[지방세],Stub)  *  INDEX(Employees[총 급여],Stub),\"\")","v":25760},null,"초과 근무 시간",null,{"$f":"IFERROR(INDEX(Employees[초과 근무 시간],Stub),\"\")","v":0}]
[null,null,"보험 공제",null,{"$f":"IFERROR(INDEX(Employees[보험 공제],Stub),\"\")","v":15000},null,"기타 정규 공제",null,{"$f":"IFERROR(INDEX(Employees[기타 일반 공제],Stub),\"\")","v":0},null,"총 급여",null,{"$f":"IFERROR(INDEX(Employees[총 급여],Stub),\"\")","v":1120000}]
[null,null,"총 세금",null,{"$f":"IFERROR(INDEX(Employees[세금 공제],Stub),\"\")","v":441160.00000000006},null,"기타 공제",null,{"$f":"IFERROR(INDEX(Employees[기타 공제],Stub),\"\")","v":0},null,"총 세액 및 공제 ",null,{"$f":"IFERROR(INDEX(Employees[세금 공제],Stub)  +  INDEX(Employees[기타 공제],Stub),\"\")","v":441160.00000000006}]
[null,null,"일반 공제 "]
[null,null,null,null,null,null,null,null,null,null,"순 급여",null,{"$f":"IFERROR(INDEX(Employees[순 급여],Stub),\"\")","v":678840}]